Cogmind - Beta 13 @@@ ROGUE MODE // 2024.04.09 @ 20:56:53 Player: Patryk Z Result: Destroyed by as-77898 with Assembled Rifle Performance ------------- Evolutions (1) 500 Regions Visited (3) 600 Robots Destroyed (42) 210 Value Destroyed (726) 726 Prototype IDs (1) 20 Alien Tech Used (0) 0 Bonus (0) 0 TOTAL SCORE: 2056 Bonus ------- None Cogmind --------- Core Integrity 0/400 Matter 300/300 Energy 265/265 System Corruption 0% Temperature Warm (120) Movement Rolling (100) Location -9/Mines Parts ------- > --- POWER (1) -------- Improved Ion Engine > --- PROPULSION (2) --- Compact Wheel Compact Wheel > --- UTILITY (3) ------ Small Storage Unit Signal Interpreter > --- WEAPON (3) ------- Improved Medium Laser Improved Medium Laser Improved Medium Laser > --- INVENTORY (8) ---- Improved Ion Engine Improved Ion Engine Wheel Wheel Compact Wheel Particle Gun Particle Gun Improved Medium Laser Peak State ------------ > --- POWER ------------ Improved Ion Engine > --- PROPULSION ------- Compact Wheel Compact Wheel > --- UTILITY ---------- Heat Sink Small Storage Unit Signal Interpreter > --- WEAPON ----------- Improved Medium Laser Improved Medium Laser Improved Medium Laser > --- INVENTORY -------- Improved Ion Engine Improved Ion Engine Compact Wheel Particle Gun Particle Gun Improved Medium Laser [Rating: 17] Favorites ----------- Power Improved Ion Engine Engine Improved Ion Engine Propulsion Compact Wheel Wheel Compact Wheel Utility Small Storage Unit Device Heat Sink Storage Small Storage Unit Processor Signal Interpreter Weapon Improved Medium Laser Energy Gun Improved Medium Laser Ballistic Gun Assault Rifle Impact Weapon Hammer Build | -11 -10 -9 -9 ------- Run | Yrd Mat Mat Min Slots Evolved 2 | . . 2 . Power . | . . . . Propulsion . | . . . . Utility 1 | . . 1 . Weapon 1 | . . 1 . Parts Attached 37 | 6 11 19 1 Power 7 | 1 2 4 . Engine 7 | 1 2 4 . Core . | . . . . Reactor . | . . . . Propulsion 8 | 2 2 4 . Treads . | . . . . Leg . | . . . . Wheel 8 | 2 2 4 . Hover . | . . . . Flight . | . . . . Utility 8 | 1 3 3 1 Device 4 | . 2 1 1 Storage 2 | 1 . 1 . Processor 2 | . 1 1 . Hackware . | . . . . Protection . | . . . . Artifact . | . . . . Weapon 14 | 2 4 8 . Energy Gun 11 | 1 2 8 . Energy Cannon . | . . . . Ballistic Gun 2 | 1 1 . . Ballistic Cannon . | . . . . Launcher . | . . . . Special Weapon . | . . . . Impact Weapon 1 | . 1 . . Slashing Weapon . | . . . . Piercing Weapon . | . . . . Special Melee Weapon . | . . . . Unidentified Prototypes 1 | . . 1 . Parts Lost 8 | . 5 2 1 Power 3 | . 2 1 . Propulsion . | . . . . Utility 3 | . 1 1 1 Weapon 2 | . 2 . . Highest Loss Streak 2 | . 2 1 1 To Critical Strikes . | . . . . Average Slot Usage (%) 87 | . 84 87 94 Engine 11 | . 13 10 11 Wheel 24 | . 28 22 22 Device 2 | . 2 2 5 Storage 12 | . 14 11 11 Processor 7 | . 1 10 11 Energy Gun 26 | . 15 31 33 Ballistic Gun 2 | . 6 . . Naked Turns . | . . . . Heaviest Build 22 | 14 14 22 22 Greatest Support 32 | 26 26 32 32 Greatest Overweight (x) 5 | . . 5 . Average Overweight (x) . | . . . . Largest Inventory Capacity 8 | 8 8 8 8 Average Capacity 7 | 6 8 8 8 Most Carried 8 | 1 8 8 8 Average Carried 5 | . 3 7 8 Final Capacity 8 | 8 8 8 8 Final Carried 8 | 1 8 8 8 Class Distribution -------------------- 38% | Gunner 33% | Mutant 24% | Scavenger-Gunner 3% | Scavenger-Mutant Dominant Class ---------------- Mutant | -10/Materials Gunner | -9/Materials Gunner | -9/Mines Resources | -11 -10 -9 -9 ----------- Run | Yrd Mat Mat Min Matter Collected 857 | 212 275 360 10 Remotely . | . . . . Salvage Created 1498 | . 720 737 41 Parts 72 | . 29 43 . Haulers Intercepted 4 | . 1 3 . Recyclers Shooed 6 | . 2 4 . Parts Field Recycled . | . . . . Retrieved Matter . | . . . . Parts Self-Destructed . | . . . . Prevented . | . . . . Kills | -11 -10 -9 -9 ------- Run | Yrd Mat Mat Min Combat Hostiles Destroyed 30 | . 10 17 3 Guns 29 | . 9 17 3 Classes Destroyed 9 | . 6 2 1 Worker 1 | . . 1 . Builder 2 | . 2 . . Hauler 4 | . 1 3 . Recycler 5 | . 3 2 . Watcher 3 | . 2 1 . Swarmer 14 | . 3 11 . Grunt 12 | . 7 5 . Sentry 1 | . . 1 . Assembled 3 | . . . 3 Best Kill Streak 6 | . 5 6 3 Combat Bots Only 5 | . 3 5 3 Max Kills in Single Turn 1 | . 1 1 1 Gunslinging . | . . . . Exploded . | . . . . Melee . | . . . . Uniques/NPCs Destroyed . | . . . . Combat | -11 -10 -9 -9 -------- Run | Yrd Mat Mat Min Hostile Shots Fired 155 | . 66 81 8 Missed 43 | . 19 22 2 Damage Taken 1542 | . 595 814 133 Core 568 | . 156 358 54 Absorbed by Shields . | . . . . Regen/Repaired (Parts) 47 | . 47 . . Core Remaining (%) 68 | 100 37 . . Volleys Fired 115 | . 56 53 6 Largest 3 | . 2 3 3 Hottest 195 | . 80 195 168 Shots Fired 268 | . 105 145 18 Gun 268 | . 105 145 18 Cannon . | . . . . Launcher . | . . . . Special . | . . . . Kinetic 47 | . 47 . . Thermal 221 | . 58 145 18 Explosive . | . . . . Electromagnetic . | . . . . Robot Hit Streak 12 | . 12 9 4 Robot Miss Streak 6 | . 3 6 2 Penetration Max . | . . . . Secondary Targets 3 | . . 3 . Max Gunslinging Chain 1 | . . 1 . Shots Hit Robots 164 | . 77 77 10 Core Hits 64 | . 28 30 6 Critical Kills . | . . . . Critical Parts Destroyed 3 | . 3 . . Critical Strikes 12 | . 6 4 2 Burn 9 | . 3 4 2 Smash 3 | . 3 . . Melee Attacks 12 | . 12 . . Impact 12 | . 12 . . Slashing . | . . . . Piercing . | . . . . Sneak Attacks 2 | . 2 . . Combat Hostiles . | . . . . Follow-up Attacks . | . . . . Damage Inflicted 2487 | . 1185 1166 136 Guns 2149 | . 847 1166 136 Cannons . | . . . . Explosions . | . . . . Melee 333 | . 333 . . Ramming 5 | . 5 . . Kinetic 342 | . 342 . . Thermal 1807 | . 505 1166 136 Explosive . | . . . . Electromagnetic . | . . . . Impact 333 | . 333 . . Slashing . | . . . . Piercing . | . . . . Highest Corruption . | . . . . Average Corruption . | . . . . Corruption Purged . | . . . . Corruption Blocked . | . . . . Overload Shots . | . . . . Overflow Damage 111 | . 111 . . Projectiles . | . . . . Explosions . | . . . . Melee 111 | . 111 . . Knockbacks 1 | . 1 . . Impact 1 | . 1 . . Kinetic . | . . . . Secondary . | . . . . Self-Inflicted Damage 2 | . 2 . . Shots . | . . . . Rammed 1 | . 1 . . Targets Rammed 1 | . 1 . . Kicked . | . . . . Crushed . | . . . . Highest Temperature 1169 | . 369 1169 216 Average Temperature 215 | . 135 268 108 Received Heat Transfer 453 | . 270 183 . Effects 45 | . 1 44 . Shutdowns 9 | . . 9 . Energy Bleed 3 | . . 3 . Interference 8 | . . 8 . Matter Decay 5 | . . 5 . Short Circuit 4 | . . 4 . Damage (minor) 8 | . 1 7 . Damage (major) 5 | . . 5 . Damage (core) 3 | . . 3 . Siege Activations . | . . . . Robots Corrupted . | . . . . Combat Hostiles . | . . . . Parts Fried 4 | . 4 . . Impact Corruptions 7 | . 7 . . Robots Melted . | . . . . Combat Hostiles . | . . . . Parts Melted 8 | . 2 6 . Heat Transferred 5043 | . 1644 2955 444 Parts Sabotaged . | . . . . Parts Stolen . | . . . . Parts Stripped . | . . . . Power Chain Reactions . | . . . . Alert | -11 -10 -9 -9 ------- Run | Yrd Mat Mat Min Peak Influence 333 | . 239 333 22 Initial 29 | . . 29 22 Average 113 | . 112 137 21 Maximum Alert Level 1 | . 1 1 . Low Security (%) 83 | 100 74 85 100 Level 1 16 | . 25 14 . Level 2 . | . . . . Level 3 . | . . . . Level 4 . | . . . . Level 5 . | . . . . High Security . | . . . . Max Security . | . . . . Squads Dispatched 1 | . . 1 . Investigation . | . . . . Extermination . | . . . . Reinforcement 1 | . . 1 . Assault . | . . . . Garrison . | . . . . Intercept . | . . . . Searches Triggered . | . . . . Construction Impeded . | . . . . Haulers Reinforced . | . . . . Active Scanning Responses . | . . . . Cargo Convoy Interrupts . | . . . . Stealth | -11 -10 -9 -9 --------- Run | Yrd Mat Mat Min Distress Signals 4 | . 1 3 . Communications Jammed . | . . . . Distress Signals . | . . . . Times Spotted 47 | . 13 25 9 Peak Tracking Total 10 | . 10 4 10 Tactical Retreats 4 | . 1 1 2 Traps | -11 -10 -9 -9 ------- Run | Yrd Mat Mat Min Traps Triggered 2 | . 1 1 . Indirectly . | . . . . Trap Hack Attempts . | . . . . Triggered . | . . . . Disarmed . | . . . . Reprogrammed . | . . . . Reused . | . . . . Traps Extracted . | . . . . Installed . | . . . . Triggered . | . . . . Machines | -11 -10 -9 -9 ---------- Run | Yrd Mat Mat Min Machines Disabled 1 | . . 1 . Max in Single Turn 1 | . . 1 . Machines Repaired . | . . . . Machines Dismantled . | . . . . Machines Sabotaged . | . . . . Overloaded Fab Kills . | . . . . Hacking | -11 -10 -9 -9 --------- Run | Yrd Mat Mat Min Machines Accessed 8 | . 2 6 . Terminals 5 | . . 5 . Fabricators . | . . . . Repair Stations 1 | . 1 . . Recycling Units 2 | . 1 1 . Scanalyzers . | . . . . Garrison Access . | . . . . Total Hacks 23 | . 4 19 . Successful 11 | . 4 7 . Failed 11 | . . 11 . Catastrophic 3 | . . 3 . Database Lockouts 1 | . . 1 . Manual 13 | . . 13 . Terminals 17 | . . 17 . Fabricators . | . . . . Repair Stations 2 | . 2 . . Recycling Units 4 | . 2 2 . Scanalyzers . | . . . . Garrison Access . | . . . . Terminal Hacks 6 | . . 6 . Part Schematic 1 | . . 1 . Robot Schematic 2 | . . 2 . Alert Level 2 | . . 2 . Unreport Threat 1 | . . 1 . Fabricator Hacks . | . . . . Repair Station Hacks 2 | . 2 . . Scan Component 1 | . 1 . . Repair 1 | . 1 . . Recycling Unit Hacks 3 | . 2 1 . Report Inventory 1 | . 1 . . Retrieve Components 2 | . 1 1 . Scanalyzer . | . . . . Garrison Access Hacks . | . . . . Unauthorized Hacks . | . . . . Terminals . | . . . . Fabricators . | . . . . Repair Stations . | . . . . Recycling Units . | . . . . Scanalyzers . | . . . . Garrison Access . | . . . . Data Cores Recovered . | . . . . Used . | . . . . Hacking Detections 7 | . 1 6 . Full Trace Events 1 | . . 1 . Feedback Events . | . . . . Feedback Blocked . | . . . . Robot Schematics Acquired 2 | . . 2 . Robots Built . | . . . . Authchips . | . . . . Time . | . . . . Total Robot Build Rating . | . . . . Part Schematics Acquired 1 | . . 1 . Parts Built . | . . . . Authchips . | . . . . Time . | . . . . Total Part Build Rating . | . . . . Parts Repaired 1 | . 1 . . Time 26 | . 26 . . Parts Recycled . | . . . . Recycled Matter . | . . . . Retrieved Matter . | . . . . Retrieved Components 19 | . 9 10 . Parts Scanalyzed . | . . . . Part Schematics Acquired . | . . . . Parts Damaged . | . . . . Bothacking | -11 -10 -9 -9 ------------ Run | Yrd Mat Mat Min Used RIF Installer . | . . . . Robots Hacked . | . . . . Non-combat . | . . . . Combat . | . . . . Robot Hacks Applied . | . . . . Relay Couplers Released . | . . . . Fabnet Peak Effective % . | . . . . Robots Rewired . | . . . . Allies Hacked . | . . . . Hacks Repelled . | . . . . Allies | -11 -10 -9 -9 -------- Run | Yrd Mat Mat Min Total Allies . | . . . . Largest Group . | . . . . Highest-Rated Group . | . . . . Highest-Rated Ally . | . . . . Total Orders . | . . . . Ally Attacks . | . . . . Total Damage . | . . . . Kills . | . . . . Allies Corrupted . | . . . . Allies Melted . | . . . . Intel | -11 -10 -9 -9 ------- Run | Yrd Mat Mat Min Robot Analysis Total . | . . . . Derelict Logs Recovered . | . . . . Drone Launches . | . . . . Drone Recoveries . | . . . . Exploration | -11 -10 -9 -9 ------------- Run | Yrd Mat Mat Min Turns Passed 1611 | 45 524 881 161 Spaces Moved 910 | 39 282 455 134 Core 6 | 1 . 5 . Treads . | . . . . Legs . | . . . . Wheels 904 | 38 282 450 134 Hover . | . . . . Flight . | . . . . Fastest Speed 50 | 50 90 85 100 Average Speed 94 | 90 90 96 100 Slowest Speed 300 | 100 90 300 100 Overloaded Moves . | . . . . Propulsion Burnouts . | . . . . Robots Hopped . | . . . . Cave-ins Triggered . | . . . . Exploration Rate (%) 28 | 3 34 43 35 Regions Visited 3 Branch Regions 1 Pre-discovered Areas . | . . . . Known Exits Taken 2 | . 1 1 . Unknown Exits Taken 1 | 1 . . . Scrap Searched . | . . . . Spaces Dug . | . . . . Terrain Destroyed . | . . . . Melee . | . . . . Projectile . | . . . . AOE . | . . . . Terrain Rammed . | . . . . Walls Destroyed . | . . . . Machines Disabled . | . . . . Actions | -11 -10 -9 -9 --------- Run | Yrd Mat Mat Min Total 1404 | 45 423 789 147 Wait 278 | . 50 222 6 Move 907 | 38 281 454 134 Hop . | . . . . Pick Up 27 | 1 8 18 . Fast Attach 19 | 6 7 5 1 Attach 8 | . 2 6 . Detach 1 | . 1 . . Swap 10 | . 2 8 . Drop 26 | . 3 23 . Fire 115 | . 56 53 6 Melee 12 | . 12 . . Ram 1 | . 1 . . Kick . | . . . . Crush . | . . . . Escape Stasis . | . . . . Rewire . | . . . . Trap . | . . . . Miscellaneous . | . . . . Route ------- -11/Scrapyard -10/Materials -9/Materials -9/Mines History --------- Turn | Location | Event 15 | -11/Scrapyard | Discovered new exit (range 15) 46 | -11/Scrapyard | Entered Materials 98 | -10/Materials | Repaired Assault Rifle 134 | -10/Materials | Discovered new exit (range 15) 250 | -10/Materials | Core integrity fell below 50% 327 | -10/Materials | Build established: Mutant 569 | -10/Materials | Identified exit to Materials 570 | -10/Materials | Entered another Materials area 570 | -9/Materials | Evolved 2 slots: Utility x1, Weapon x1 1020 | -9/Materials | Core integrity fell below 50% 1134 | -9/Materials | Discovered new exit (range 6) 1261 | -9/Materials | Core integrity fell below 20% 1296 | -9/Materials | Central database locked down 1450 | -9/Materials | Identified exit to Mines 1451 | -9/Materials | Entered Mines 1490 | -9/Mines | Found a hidden stash of uninstalled traps 1562 | -9/Mines | Assembled infested the area 1567 | -9/Mines | Assisted by a Guerilla fighting off Assembled 1612 | -9/Mines | Destroyed by as-77898 with Assembled Rifle Last Messages --------------- out of here! I've been tracking a group of Assembled to figure out where they're coming from, and they're closing on this area, come on!" 01576_ T-07 Excavator is excavating. 01576_ T9-M7D(h): "I'll hold them off! Go on ahead or try to find another way!" 01580_ T-07 Excavator is excavating. 01585_ as-99605 suffers critical hit (Destroy). 01585_ as-99605 knocked back. 01586_ T-07 Excavator is excavating. 01586_ Knocked back. 01587_ HV Slug penetrates Wall. 01589_ T9-M7D(h) destroyed. 01589_ as-70578 destroyed. 01594_ T-07 Excavator is excavating. 01598_ as-68580 suffers critical hit (Burn). 01598_ as-68580 destroyed. 01603_ as-57923 destroyed. 01606_ T-07 Excavator destroyed. 01608_ Heat Sink destroyed. Map ----- +----------------------------------------------------+ | # """ ##????????????????????????????????????????? | | # """ #####?????????????????????????????????????? | | # """ #?????????????????????????????????????? | | ## ### #?????????????????????????????????????? | | ?### ##?# #?????????????????????????????????????? | | ######???# #?????????????????????????????????????? | | ##????# #???????? """?????????????????????????? | | ##???# #???? ??????????????????????????? | | ##### # #???????????????????????????????? | | #?????????????????????????????????? | | ##?????????????????????????????????? | | ####### #??????????????????????????????????? | | ##??????# #?????????????????????????????????? | | ##???????? #????????????????????????????????? | | ##?????????? ???????????????????????????????? | | ##??????????? ?????????????????????????????? | | ##????????????? ????????????????????????????? | | ##?????????????? ???????????????????????????? | | ##????????????? ???????????????????????????? | | ##????????????? ???????????????????????????? | | ##????????????? ?????????????????????????????? | | #????????????????????????????????????????????? | | #????????????????????????????????????????????? | | ##??????????????????####?????????????????????? | | ##########????????## #?????????????????????? | | & ##???????# @ #?????????????????????? | | & & ##?######% ##?????????????????????? | | & #?# a ##??????????????????????? | | #?# % #???????????????????????? | | ### %#####???????????????????????? | | #???????????????????????????? | | ## %= #???????????????????????????? | | # #### =%]*#####???????????????????????????? | | ### ##??## = ##???????????????????????????????? | | ??# ####### #########???????????????????????? | | ??# ##?# ##??????????????????????? | | ??# #### "# # #??????????????????????? | | ??# ### #### #??????????????????????? | | ??# ######## ##??# #??????????????????????? | | ??# #?????# ##???# #??????????????????????? | | ??# #?????# #????# #??????????????????????? | | ??# #?????## ##????# ??????????????????????? | | ### #??????## ##?????## #?????????????????????? | | #???????####????????# ?????????????????????? | | #???????????????????? ????????????????????? | | ######????????????????????# ????????????????????? | | #?????????????????????????? #???????????????????? | | #?????????????????????????? #???????????????????? | | #?????????????????????????? ???????????????????? | | #######????????????????????? ???????????????????? | +----------------------------------------------------+ Best States ------------- Heat Dissipation 38 Energy Generation 12 Energy Capacity 265 Matter Stores 300 Matter Capacity 300 Sight Range 16 Robot Scan Range 14 Terrain Scan Density 10 Evasion (%) 43 Item Schematics ----------------- Huge Storage Unit | -9/Materials | Hacked Robot Schematics ------------------ O-16 Technician | -9/Materials | Hacked M-13 Machinist | -9/Materials | Hacked Fabricated ------------ Nothing Alien Tech Used ----------------- None Achievements -------------- None Challenges ------------ None Game ------ Seed StorageTacticalSink Manual? 0 Play Time 00:29:22 Cumulative 24.3 hours Start 2024.04.09 @ 20:29:24 End 2024.04.09 @ 20:56:53 Sessions 1 Manual Loads 0 Difficulty Rogue Special Mode None Game No. 15 Rogue 15 Adventurer 0 Explorer 0 Win Type - Total 0 Types 0/0/0/0/0/0/0/0/0 Lore% 19 Gallery% 20 Achievement% 23 Wizard Run 0 Options --------- Layout 1 ASCII 0 Keyboard 0 Movement Mouse Keybinds 0 Fullscreen 2 Font 20/X11 Map View 64x42 Zoom Use 0% Tactical HUD 1 Map Filters NONE Filters NONE Steam 1 RUN: 3acb201c-9589-4a22-905e-d0aeb39b9a42